{"text_format":"1","workbook":"xlsx","n_sheets":2,"sheets":["KONECT","KLSM"],"not_rendered":{"charts":0,"images":0,"macros":1,"external_links":1,"defined_names":1,"comments":0,"pivot_tables":0},"unopened":[],"bounds":{"document_bytes":16777216,"sheet_cells":100000,"rows_first":2000,"rows_last":500,"rows_between":2000,"halvings":0,"cell_chars":16384,"cell_head_chars":4096},"cells_cut":0,"cells_raw":0,"read":"whole","date_system":"1900"}

{"sheet":"KONECT","index":0,"n_rows":40,"n_cols":11,"rows_kept":40,"cut":false,"hidden":true,"merged":[[0,0,0,10],[26,0,26,10]]}
[{"$f":"INDEX(A37:B40,MATCH(OFFSET(A1,2,0),A37:A40,),2)","v":"VLCC Schedule updated: 2021/10/15"}]
["Vessel","Date","Port","Date","PORT","DATE","PORT","DATE","PORT","Remark","Mail Packet"]
["KISO","10/28","KHORFAKKAN ",null,null,null,null,null,null,{"$f":"_xlfn.TEXTJOIN(\" \",FALSE,D3,E3)","v":" "}]
["SAKU","11/1","UBE",null,null,null,null,null,null,{"$f":"_xlfn.TEXTJOIN(\" \",FALSE,D4,E4)","v":" "}]
["SETA","10/18-19","UBE","10/23","TOMAKOMAI",null,null,null,null,{"$f":"_xlfn.TEXTJOIN(\" \",FALSE,D5,E5)","v":"10/23 TOMAKOMAI"}]
["TEDO","10/27","KIIRE",null,null,null,null,null,null,{"$f":"_xlfn.TEXTJOIN(\" \",FALSE,D6,E6)","v":" "}]
["TONE","10/27","DOS BOCAS, MEXICO",null,null,null,null,null,null,{"$f":"_xlfn.TEXTJOIN(\" \",FALSE,D7,E7)","v":" "}]
["YAMA",null,"WENCHONG DOCK",null,null,null,null,null,null,{"$f":"_xlfn.TEXTJOIN(\" \",FALSE,B8,C8)","v":" WENCHONG DOCK"}]
["CRY","10/16","YANBU",null,null,null,null,null,null,{"$f":"_xlfn.TEXTJOIN(\" \",FALSE,D9,E9)","v":" "}]
["GNR","10/19","PORT ELIZABETH",null,null,null,null,null,null,{"$f":"_xlfn.TEXTJOIN(\" \",FALSE,D10,E10)","v":" "}]
["GXY","10/30","PORT ELIZABETH",null,"TANJUNG SECONG",null,null,null,null,{"$f":"_xlfn.TEXTJOIN(\" \",FALSE,D11,E11)","v":" TANJUNG SECONG"}]
["SUMR",null,"TAIXING","O/A 18TH OCT.","BUSAN (BUNKER)",null,"BALBOA",null,"HOUSTON",{"$f":"_xlfn.TEXTJOIN(\" \",FALSE,D12,E12)","v":"O/A 18TH OCT. BUSAN (BUNKER)"}]
[null,"       ",null,null,null,null,null,null,null,{"$f":"_xlfn.TEXTJOIN(\" \",FALSE,D13,E13)","v":" "}]
[null,"       ",null,null,null,null,null,null,null," "]
["ALR","10/26","NIIGATA","11/3","SINGAPORE (BUNKERING)","11/12","RAS RAFFAN",null,null,"11/3 SINGAPORE (BUNKERING)"]
["ZKT","11/1","YANAI","11/16","RAS RAFFAN",null,null,null,null,"11/16 RAS RAFFAN"]
["BSM","10/17","YEOSU","10/27","GORGON","11/15","TIANJIN",null,null,"10/27 GORGON"]
["ESM","10/16-11/17","YURA (DOCKING)",null,null,null,null,null,null," "]
["PBR","10/20","DARWIN","10/28","YUNG AN","11/6","DARWIN",null,null,"10/28 YUNG AN"]
["OBR","10/20","ZHUHAI","10/30","DARWIN (TBC)",null,null,null,null,"10/30 DARWIN (TBC)"]
["TFJ","11/5","TANGGUH (TBC)",null,null,null,null,null,null," "]
["TJY","10/19","TANGGUH ","10/27","GWANGYANG",null,null,null,null,"10/27 GWANGYANG"]
["TPL","10/22","TANGGUH (TBC)","10/31","YUEDONG (TBC)","11/4","YEOSU","11/19-12/12","MMHE (DOCKING)","10/31 YUEDONG (TBC)"]
[null,null,null,null,null,null,null,null,null," "]
[null,null,null,null,null,null,null,null,null," "]
[null,"       ",null,null,null,null,null,null,null," "]
[{"$f":"KLSM!A2","v":"2021-10-15"}]
["Vessel","Date","Port","作業用","作業用",null,null,null,null,"Remark","Mail Packet"]
["CSCR",{"$f":"LEFT(\"S'PORE!B22\",FIND(\" \",\"S'PORE!B22\")-1)","v":{"$error":"#VALUE!"}},{"$f":"IF(E29=FALSE,D29,LEFT(D29,FIND(\" \",D29)-1))","v":{"$error":"#REF!"}},{"$f":"TRIM(RIGHT('[1]S\"PORE'!B22,LEN('[1]S\"PORE'!B22)-FIND(\" \",'[1]S\"PORE'!B22)))","v":{"$error":"#REF!"}},{"$f":"COUNT(FIND({0,1,2,3,4,5,6,7,8,9},D29))>0","v":false},null,null,null,null,{"$f":"IF(E29=FALSE,\" \",TRIM(RIGHT(D29,LEN(D29)-FIND(\" \",D29))))","v":" "}]
["OCER",{"$f":"LEFT('[1]S\"PORE'!B23,FIND(\" \",'[1]S\"PORE'!B23)-1)","v":{"$error":"#REF!"}},{"$f":"IF(E30=FALSE,D30,LEFT(D30,FIND(\" \",D30)-1))","v":{"$error":"#REF!"}},{"$f":"TRIM(RIGHT('[1]S\"PORE'!B23,LEN('[1]S\"PORE'!B23)-FIND(\" \",'[1]S\"PORE'!B23)))","v":{"$error":"#REF!"}},{"$f":"COUNT(FIND({0,1,2,3,4,5,6,7,8,9},D30))>0","v":false},null,null,null,null,{"$f":"IF(E30=FALSE,\" \",TRIM(RIGHT(D30,LEN(D30)-FIND(\" \",D30))))","v":" "}]
[null,"       "]
[null,"       "]
[null,"       "]
[null,"       "]
[null,"       "]
["<作業用>",null,null,null,null,"<作業用メモ>"]
["KISO",{"$f":"\"VLCC Schedule updated: \"&TEXT(KLSM!A2,\"yyyy/mm/dd\")","v":"VLCC Schedule updated: 2021/10/15"},null,null,null,"1. E-I列は非表示にする"]
["CRY",{"$f":"\"LPG Schedule updated: \"&TEXT(KLSM!A2,\"yyyy/mm/dd\")","v":"LPG Schedule updated: 2021/10/15"},null,null,null,"2. 列はカテゴリごとに削除して使用"]
[{"$f":"A15","v":"ALR"},{"$f":"\"LNG-1 Schedule updated: \"&TEXT(KLSM!A2,\"yyyy/mm/dd\")","v":"LNG-1 Schedule updated: 2021/10/15"}]
[{"$f":"A21","v":"TFJ"},{"$f":"\"LNG-2 Schedule updated: \"&TEXT(KLSM!A2,\"yyyy/mm/dd\")","v":"LNG-2 Schedule updated: 2021/10/15"}]

{"sheet":"KLSM","index":1,"n_rows":39,"n_cols":11,"rows_kept":39,"cut":false,"hidden":false,"merged":[[14,1,14,14],[15,1,15,14],[16,1,16,14],[1,0,1,1],[2,1,2,14],[3,1,3,14],[4,1,4,14],[5,1,5,14],[6,1,6,14],[7,1,7,14],[8,1,8,14],[9,1,9,14],[10,1,10,14],[13,1,13,14]]}
["KLSM VESSEL"]
["2021-10-15"]
["YAMA"," WENCHONG DOCK　 　 　 "]
["SETA","10/18-19 UBE　10/23 TOMAKOMAI　 　 "]
["SUMR"," TAIXING　O/A 18TH OCT. BUSAN (BUNKER)　 BALBOA　 HOUSTON"]
["GXY","10/30 PORT ELIZABETH　 TANJUNG SECONG　 　 "]
["CRY","10/16 YANBU　 　 　 "]
["KISO","10/28 KHORFAKKAN 　 　 　 "]
["TEDO","10/27 KIIRE　 　 　 "]
["TONE","10/27 DOS BOCAS, MEXICO　 　 　 "]
["GNR","10/19 PORT ELIZABETH　 　 　 "]
["CRSR","10/12-15 NAPA NAPA  20-26 ICHTHYS  31-11/2 NAPA NAPA"]
["OCER","10/11-16 TANJUNG PELEPAS  16-17 PASIR GUDANG  17-18 SINGAPORE  20-23 SEPAT  26-27 LALANG  29-30 PENGERANG  11/8-11 KIKUMA"]
["PBR","10/20 DARWIN　10/28 YUNG AN　11/6 DARWIN　 "]
["TFJ","11/5 TANGGUH (TBC)　 　 　 "]
["TJY","10/19 TANGGUH 　10/27 GWANGYANG　 　 "]
["TPL","10/22 TANGGUH (TBC)　10/31 YUEDONG (TBC)　11/4 YEOSU　11/19-12/12 MMHE (DOCKING)"]
["HMBB",null,"DRY DOCK (PHASE IN FP1) 10/26 KOB  27-28 NGO  29-30 SMZ  31-11/1 TKY",null,null,null,null," "]
["HKGB","FP1","10/17-18 SGP  24-25 KOB  26-27 NGO  28-29 TKY  "]
["HSKB","EC5","10/23 HALIFAX  25-27 NYC  29-11/5 SAV"]
["HSTB","EC5","10/15-16 SUEZ  23-24 JEBEL ALI  11/2-5 SGP  8-9 LCH"]
["MCKB","MD1","10/17 TAO  20-21 PUS  22-24 SHA  27 SHK  31-11/1 SGP"]
[]
[]
[]
[]
[]
[]
[]
[]
[]
[]
[]
[null,"              ",null,null,null,null,null,null,null,null,"              "]
[null,"              ",null,null,null,null,null,null,null,null,"              "]
[null,"              ",null,null,null,null,null,null,null,null,"              "]
[null,"              ",null,null,null,null,null,null,null,null,"              "]
[null,"              ",null,null,null,null,null,null,null,null,"              "]
[null,"              ",null,null,null,null,null,null,null,null,"              "]